[Event "*** Titled Tuesday Blitz"]
[Site "Chess.com"]
[Date "2018.04.03"]
[Round "10"]
[White "Marcus_Harvey"]
[Black "SanQui14"]
[Result "1-0"]
[WhiteElo "2604"]
[BlackElo "2241"]
[TimeControl "180+2"]
[EndTime "15:12:07 PDT"]
[Termination "Marcus_Harvey won by checkmate"]

1. d4 {[%clk 0:03:01.9]} 1... Nf6 {[%clk 0:03:00.7]} 2. c4 {[%clk 0:03:02.7]}
2... g6 {[%clk 0:03:00.9]} 3. Nf3 {[%clk 0:03:03.7]} 3... Bg7 {[%clk 0:03:01.2]}
4. Nc3 {[%clk 0:03:05.3]} 4... d5 {[%clk 0:03:02.5]} 5. cxd5 {[%clk 0:03:07.2]}
5... Nxd5 {[%clk 0:03:03.8]} 6. Bd2 {[%clk 0:03:08.8]} 6... O-O {[%clk
0:03:02.7]} 7. e4 {[%clk 0:03:09.8]} 7... Nxc3 {[%clk 0:03:03.7]} 8. Bxc3 {[%clk
0:03:11.7]} 8... c5 {[%clk 0:03:01.7]} 9. d5 {[%clk 0:03:11.8]} 9... e5 {[%clk
0:03:00.8]} 10. h4 {[%clk 0:03:02.3]} 10... Bg4 {[%clk 0:02:55.5]} 11. Be2
{[%clk 0:03:00.6]} 11... Re8 {[%clk 0:02:50.6]} 12. Nd2 {[%clk 0:02:59.1]} 12...
Bxe2 {[%clk 0:02:35.3]} 13. Qxe2 {[%clk 0:03:00.1]} 13... Nd7 {[%clk 0:02:30.7]}
14. h5 {[%clk 0:03:00]} 14... Qg5 {[%clk 0:02:31.8]} 15. hxg6 {[%clk 0:02:55.5]}
15... h6 {[%clk 0:02:28]} 16. gxf7+ {[%clk 0:02:54.9]} 16... Kxf7 {[%clk
0:02:27.5]} 17. Qh5+ {[%clk 0:02:37.3]} 17... Qxh5 {[%clk 0:02:27]} 18. Rxh5
{[%clk 0:02:39.2]} 18... Kg6 {[%clk 0:02:28.6]} 19. Rh3 {[%clk 0:02:39.9]} 19...
b5 {[%clk 0:02:26.1]} 20. Nf3 {[%clk 0:02:38]} 20... b4 {[%clk 0:02:23.5]} 21.
Nh4+ {[%clk 0:02:38.8]} 21... Kh7 {[%clk 0:02:22.8]} 22. Bd2 {[%clk 0:02:39.9]}
22... Nf6 {[%clk 0:02:17.4]} 23. f3 {[%clk 0:02:41]} 23... Ng8 {[%clk
0:02:14.5]} 24. Nf5 {[%clk 0:02:41.8]} 24... Bf8 {[%clk 0:02:15.9]} 25. g4
{[%clk 0:02:40.2]} 25... Kg6 {[%clk 0:02:16.4]} 26. Ke2 {[%clk 0:02:35.5]} 26...
c4 {[%clk 0:01:53.1]} 27. g5 {[%clk 0:02:29.3]} 27... c3 {[%clk 0:01:27.3]} 28.
bxc3 {[%clk 0:02:28.5]} 28... bxc3 {[%clk 0:01:29.2]} 29. Bxc3 {[%clk
0:02:29.5]} 29... hxg5 {[%clk 0:01:30.6]} 30. Bd2 {[%clk 0:02:25.2]} 30... Bc5
{[%clk 0:01:31.4]} 31. Rc1 {[%clk 0:02:21.9]} 31... Rac8 {[%clk 0:01:30.8]} 32.
Rg3 {[%clk 0:02:22]} 32... Ba3 {[%clk 0:01:12.1]} 33. Rxg5+ {[%clk 0:02:17.4]}
33... Kf7 {[%clk 0:01:13.2]} 34. Rg7+ {[%clk 0:02:16.4]} 34... Kf6 {[%clk
0:01:09.5]} 35. Bg5# {[%clk 0:02:15.3]} 1-0

[Event "*** Titled Tuesday Blitz"]
[Site "Chess.com"]
[Date "2018.04.03"]
[Round "10"]
[White "Cecile-Haussernot"]
[Black "AndrewMcStone"]
[Result "1-0"]
[WhiteElo "2282"]
[BlackElo "2072"]
[TimeControl "180+2"]
[EndTime "15:12:12 PDT"]
[Termination "Cecile-Haussernot won by checkmate"]

1. e4 {[%clk 0:03:01.9]} 1... Nc6 {[%clk 0:02:59.9]} 2. d4 {[%clk 0:03:01.6]}
2... d5 {[%clk 0:03:00.9]} 3. exd5 {[%clk 0:03:00.3]} 3... Qxd5 {[%clk
0:03:00.6]} 4. Be3 {[%clk 0:03:01.4]} 4... e5 {[%clk 0:02:59.8]} 5. c4 {[%clk
0:02:59.2]} 5... Bb4+ {[%clk 0:02:51.2]} 6. Nc3 {[%clk 0:03:00.4]} 6... Qe4
{[%clk 0:02:23.7]} 7. d5 {[%clk 0:02:57.5]} 7... Nd4 {[%clk 0:02:16.7]} 8. Bd3
{[%clk 0:02:50.7]} 8... Qxg2 {[%clk 0:02:13.5]} 9. Qa4+ {[%clk 0:02:51.3]} 9...
Bd7 {[%clk 0:02:02.4]} 10. Qxb4 {[%clk 0:02:50.8]} 10... Qxh1 {[%clk 0:00:27.5]}
11. O-O-O {[%clk 0:02:49.4]} 11... Ne7 {[%clk 0:00:21.3]} 12. Bxd4 {[%clk
0:02:46.3]} 12... exd4 {[%clk 0:00:21.6]} 13. Re1 {[%clk 0:02:46.9]} 13... O-O
{[%clk 0:00:18]} 14. Qxe7 {[%clk 0:02:34.2]} 14... Rae8 {[%clk 0:00:18]} 15.
Bxh7+ {[%clk 0:02:34.4]} 15... Kxh7 {[%clk 0:00:15]} 16. Qh4+ {[%clk 0:02:34.4]}
16... Kg8 {[%clk 0:00:15.9]} 17. Ne4 {[%clk 0:02:35.9]} 17... Bf5 {[%clk
0:00:13.8]} 18. f3 {[%clk 0:02:34.9]} 18... Qg2 {[%clk 0:00:11.9]} 19. Ne2
{[%clk 0:02:32.4]} 19... Qxf3 {[%clk 0:00:10.6]} 20. Nxd4 {[%clk 0:02:31.7]}
20... Qd3 {[%clk 0:00:08.9]} 21. Nxf5 {[%clk 0:02:32.4]} 21... Qxc4+ {[%clk
0:00:09.3]} 22. Kb1 {[%clk 0:02:30.8]} 22... Qxd5 {[%clk 0:00:09]} 23. Nf6+
{[%clk 0:02:31.6]} 23... gxf6 {[%clk 0:00:09.4]} 24. Rg1+ {[%clk 0:02:32.5]}
24... Qg2 {[%clk 0:00:09.7]} 25. Rxg2# {[%clk 0:02:33.5]} 1-0

[Event "*** Titled Tuesday Blitz"]
[Site "Chess.com"]
[Date "2018.04.03"]
[Round "10"]
[White "Zhuu96"]
[Black "ilmago"]
[Result "1-0"]
[WhiteElo "2713"]
[BlackElo "1940"]
[TimeControl "180+2"]
[EndTime "15:13:02 PDT"]
[Termination "Zhuu96 won by resignation"]

1. b3 {[%clk 0:03:00.4]} 1... e5 {[%clk 0:02:52.9]} 2. Bb2 {[%clk 0:03:02.3]}
2... d6 {[%clk 0:02:53]} 3. g3 {[%clk 0:03:04.2]} 3... g6 {[%clk 0:02:52]} 4.
Bg2 {[%clk 0:03:06.1]} 4... Bg7 {[%clk 0:02:52.9]} 5. Bf1 {[%clk 0:03:08]} 5...
c6 {[%clk 0:02:53]} 6. Bg2 {[%clk 0:03:09.9]} 6... Be6 {[%clk 0:02:52.4]} 7. Bf1
{[%clk 0:03:11.8]} 7... Nd7 {[%clk 0:02:53.2]} 8. Bg2 {[%clk 0:03:12.3]} 8...
Ne7 {[%clk 0:02:53.7]} 9. e3 {[%clk 0:03:13]} 9... O-O {[%clk 0:02:54.2]} 10.
Ne2 {[%clk 0:03:14.5]} 10... f5 {[%clk 0:02:54.7]} 11. O-O {[%clk 0:03:15.3]}
11... Rc8 {[%clk 0:02:54.9]} 12. d4 {[%clk 0:03:15.8]} 12... Qc7 {[%clk
0:02:50.8]} 13. c4 {[%clk 0:03:16.7]} 13... d5 {[%clk 0:02:46.9]} 14. cxd5
{[%clk 0:03:15.8]} 14... Nxd5 {[%clk 0:02:45.8]} 15. dxe5 {[%clk 0:03:16.2]}
15... Nxe5 {[%clk 0:02:45.6]} 16. Nd4 {[%clk 0:03:15.9]} 16... Bf7 {[%clk
0:02:42.6]} 17. Na3 {[%clk 0:03:16.8]} 17... a6 {[%clk 0:02:41.5]} 18. Rc1
{[%clk 0:03:17]} 18... Rfd8 {[%clk 0:02:32.5]} 19. Qe2 {[%clk 0:03:16.9]} 19...
Nb4 {[%clk 0:02:25.2]} 20. Bc3 {[%clk 0:03:17.4]} 20... Nd5 {[%clk 0:02:17.3]}
21. Ba1 {[%clk 0:03:17.8]} 21... Qa5 {[%clk 0:02:08.2]} 22. Nc4 {[%clk
0:03:17.2]} 22... Nxc4 {[%clk 0:02:06.2]} 23. bxc4 {[%clk 0:03:17.1]} 23... Nf6
{[%clk 0:01:56.9]} 24. Qb2 {[%clk 0:03:15.2]} 24... b5 {[%clk 0:01:52.9]} 25.
cxb5 {[%clk 0:03:15.3]} 25... cxb5 {[%clk 0:01:50.8]} 26. Nc6 {[%clk 0:03:16.4]}
26... Rxc6 {[%clk 0:01:47.3]} 27. Rxc6 {[%clk 0:03:16.7]} 27... Ne8 {[%clk
0:01:42.2]} 28. Qc1 {[%clk 0:03:16.5]} 28... Qxa2 {[%clk 0:01:39.2]} 29. Bxg7
{[%clk 0:03:16.5]} 29... Nxg7 {[%clk 0:01:38.8]} 30. Rc8 {[%clk 0:03:17.6]}
30... Re8 {[%clk 0:01:30.7]} 31. Qc7 {[%clk 0:03:14.9]} 31... b4 {[%clk
0:01:27.1]} 32. Bc6 {[%clk 0:03:14.5]} 32... Qe6 {[%clk 0:01:20.5]} 33. Bxe8
{[%clk 0:03:15.1]} 33... Nxe8 {[%clk 0:01:21]} 34. Rb8 {[%clk 0:03:08.7]} 34...
b3 {[%clk 0:01:20.3]} 35. Rb1 {[%clk 0:03:07.2]} 35... Kg7 {[%clk 0:01:15]} 36.
Rxe8 {[%clk 0:03:01.4]} 36... Qxe8 {[%clk 0:01:10.7]} 37. Rxb3 {[%clk
0:03:02.8]} 37... Kh6 {[%clk 0:01:04.6]} 38. Rb4 {[%clk 0:03:02.7]} 38... g5
{[%clk 0:01:02.3]} 39. Rb6+ {[%clk 0:03:01.5]} 39... Bg6 {[%clk 0:01:03.5]} 40.
Rxa6 {[%clk 0:03:00.6]} 40... Qe4 {[%clk 0:01:04.6]} 41. Ra1 {[%clk 0:03:00.9]}
41... Be8 {[%clk 0:01:00]} 42. Rc1 {[%clk 0:03:01.3]} 42... Bg6 {[%clk
0:00:55.1]} 43. h4 {[%clk 0:03:01]} 43... gxh4 {[%clk 0:00:55.2]} 44. Qf4+
{[%clk 0:03:01.2]} 44... Kh5 {[%clk 0:00:51.3]} 45. g4+ {[%clk 0:02:51.9]} 1-0

[Event "*** Titled Tuesday Blitz"]
[Site "Chess.com"]
[Date "2018.04.03"]
[Round "10"]
[White "SamCopeland"]
[Black "XiaoKangZhong"]
[Result "1-0"]
[WhiteElo "2020"]
[BlackElo "2009"]
[TimeControl "180+2"]
[EndTime "15:13:20 PDT"]
[Termination "SamCopeland won by checkmate"]

1. e4 {[%clk 0:02:54.1]} 1... c5 {[%clk 0:02:59.3]} 2. Nf3 {[%clk 0:02:51.8]}
2... e6 {[%clk 0:02:58.7]} 3. d4 {[%clk 0:02:52.9]} 3... cxd4 {[%clk 0:02:59.6]}
4. Nxd4 {[%clk 0:02:54.8]} 4... Nc6 {[%clk 0:03:00.7]} 5. Nb5 {[%clk 0:02:42.8]}
5... d6 {[%clk 0:02:59.2]} 6. Bf4 {[%clk 0:02:41.1]} 6... e5 {[%clk 0:02:58.2]}
7. Be3 {[%clk 0:02:35.5]} 7... a6 {[%clk 0:02:57.3]} 8. N5c3 {[%clk 0:02:32.1]}
8... Nge7 {[%clk 0:02:56.4]} 9. Be2 {[%clk 0:02:25.9]} 9... g6 {[%clk
0:02:56.4]} 10. Nd2 {[%clk 0:02:18.8]} 10... Bg7 {[%clk 0:02:56.5]} 11. Nc4
{[%clk 0:02:18]} 11... d5 {[%clk 0:02:47.5]} 12. Nxd5 {[%clk 0:01:45]} 12...
Nxd5 {[%clk 0:02:42.8]} 13. Qxd5 {[%clk 0:01:44.2]} 13... Qxd5 {[%clk
0:02:37.5]} 14. exd5 {[%clk 0:01:42.8]} 14... Nb4 {[%clk 0:02:38]} 15. O-O-O
{[%clk 0:01:41.5]} 15... Nxa2+ {[%clk 0:02:25.8]} 16. Kb1 {[%clk 0:01:41.5]}
16... Nb4 {[%clk 0:02:26.3]} 17. Nb6 {[%clk 0:01:36.2]} 17... Rb8 {[%clk
0:02:10.7]} 18. Bc5 {[%clk 0:01:35.6]} 18... Nxc2 {[%clk 0:01:57.2]} 19. Kxc2
{[%clk 0:01:32.1]} 19... Bf5+ {[%clk 0:01:57.6]} 20. Kb3 {[%clk 0:01:17.9]}
20... f6 {[%clk 0:01:55.1]} 21. d6 {[%clk 0:01:17.4]} 21... Kf7 {[%clk
0:01:54.7]} 22. Bc4+ {[%clk 0:01:17.5]} 22... Be6 {[%clk 0:01:55.3]} 23. d7
{[%clk 0:01:14.1]} 23... Rbd8 {[%clk 0:01:54.9]} 24. Rd6 {[%clk 0:01:12.4]}
24... Bxc4+ {[%clk 0:01:54.2]} 25. Kxc4 {[%clk 0:01:14.3]} 25... Bf8 {[%clk
0:01:53.7]} 26. Rd2 {[%clk 0:01:05.8]} 26... Bxc5 {[%clk 0:01:52.7]} 27. Kxc5
{[%clk 0:01:07.7]} 27... Ke7 {[%clk 0:01:52.1]} 28. Rd6 {[%clk 0:01:03.8]} 28...
Rhf8 {[%clk 0:01:45]} 29. Nd5+ {[%clk 0:01:02.6]} 29... Kf7 {[%clk 0:01:42.2]}
30. Rxf6+ {[%clk 0:01:02.7]} 30... Kg7 {[%clk 0:01:42.5]} 31. Rxf8 {[%clk
0:01:03.4]} 31... Rxf8 {[%clk 0:01:43.1]} 32. Kd6 {[%clk 0:01:03.4]} 32... e4
{[%clk 0:01:43.2]} 33. Rc1 {[%clk 0:01:02.5]} 33... b5 {[%clk 0:01:40.2]} 34.
Rc8 {[%clk 0:01:02.3]} 34... Rxf2 {[%clk 0:01:37.1]} 35. d8=Q {[%clk 0:01:00.5]}
35... e3 {[%clk 0:01:38.2]} 36. Qe7+ {[%clk 0:00:52.5]} 36... Rf7 {[%clk
0:01:35.2]} 37. Qxe3 {[%clk 0:00:51.7]} 37... Rd7+ {[%clk 0:01:32.5]} 38. Kxd7
{[%clk 0:00:52]} 38... Kf7 {[%clk 0:01:32.5]} 39. Qe7# {[%clk 0:00:52]} 1-0

[Event "*** Titled Tuesday Blitz"]
[Site "Chess.com"]
[Date "2018.04.03"]
[Round "10"]
[White "dimke2802"]
[Black "TrimitziosP7"]
[Result "1-0"]
[WhiteElo "2348"]
[BlackElo "2578"]
[TimeControl "180+2"]
[EndTime "15:13:22 PDT"]
[Termination "dimke2802 won by resignation"]

1. d4 {[%clk 0:03:01.9]} 1... d5 {[%clk 0:03:00.5]} 2. c4 {[%clk 0:02:59.4]}
2... c6 {[%clk 0:03:01.2]} 3. Nc3 {[%clk 0:02:57.2]} 3... Nf6 {[%clk 0:03:02.3]}
4. e3 {[%clk 0:02:58.2]} 4... a6 {[%clk 0:03:02.5]} 5. Qc2 {[%clk 0:02:48.5]}
5... b5 {[%clk 0:03:02.9]} 6. b3 {[%clk 0:02:49]} 6... g6 {[%clk 0:03:02.7]} 7.
Bd3 {[%clk 0:02:48.8]} 7... Bg7 {[%clk 0:03:02.9]} 8. Nf3 {[%clk 0:02:49.8]}
8... O-O {[%clk 0:03:03.3]} 9. O-O {[%clk 0:02:50.6]} 9... Nbd7 {[%clk
0:03:04.5]} 10. Bb2 {[%clk 0:02:49.8]} 10... Re8 {[%clk 0:03:03.5]} 11. Rad1
{[%clk 0:02:50.5]} 11... Bb7 {[%clk 0:03:04.6]} 12. Rfe1 {[%clk 0:02:51.3]}
12... Rc8 {[%clk 0:03:05.7]} 13. e4 {[%clk 0:02:49.7]} 13... b4 {[%clk
0:03:06.6]} 14. Na4 {[%clk 0:02:49.2]} 14... Nxe4 {[%clk 0:03:07.3]} 15. Bxe4
{[%clk 0:02:50.5]} 15... dxe4 {[%clk 0:03:08.9]} 16. Qxe4 {[%clk 0:02:51.2]}
16... Qc7 {[%clk 0:03:10.4]} 17. c5 {[%clk 0:02:41.1]} 17... Nf6 {[%clk
0:03:07]} 18. Qe2 {[%clk 0:02:30.2]} 18... Nd5 {[%clk 0:03:07.5]} 19. Ne5 {[%clk
0:02:27.4]} 19... Rcd8 {[%clk 0:03:06]} 20. Nc4 {[%clk 0:02:27.5]} 20... Bc8
{[%clk 0:03:06.1]} 21. Nab6 {[%clk 0:02:17.4]} 21... Be6 {[%clk 0:03:04.1]} 22.
a3 {[%clk 0:01:44.4]} 22... Qb7 {[%clk 0:02:57.8]} 23. axb4 {[%clk 0:01:39.7]}
23... Nxb4 {[%clk 0:02:59.7]} 24. Qd2 {[%clk 0:01:38.7]} 24... Nd5 {[%clk
0:02:59.2]} 25. Qe2 {[%clk 0:01:34]} 25... Nc7 {[%clk 0:02:57.2]} 26. Na5 {[%clk
0:01:26.4]} 26... Qa8 {[%clk 0:02:56.2]} 27. Nxa8 {[%clk 0:01:26.5]} 27... Rxa8
{[%clk 0:02:41.9]} 28. Nxc6 {[%clk 0:01:20.9]} 28... Bxb3 {[%clk 0:02:39.1]} 29.
Ra1 {[%clk 0:01:21.1]} 29... Be6 {[%clk 0:02:38.6]} 30. d5 {[%clk 0:01:19]}
30... Nxd5 {[%clk 0:02:34]} 31. Bxg7 {[%clk 0:01:17.5]} 31... Kxg7 {[%clk
0:02:35.9]} 32. Rxa6 {[%clk 0:01:16.3]} 32... Rac8 {[%clk 0:02:28.7]} 33. Nd4
{[%clk 0:01:15]} 33... Bd7 {[%clk 0:02:12.9]} 34. c6 {[%clk 0:01:15.8]} 34...
Bf5 {[%clk 0:02:11.2]} 35. Nxf5+ {[%clk 0:01:16.3]} 35... gxf5 {[%clk
0:02:13.1]} 36. Qe5+ {[%clk 0:01:17]} 36... Nf6 {[%clk 0:01:56.5]} 37. Qxf5
{[%clk 0:01:17.5]} 37... Rc7 {[%clk 0:01:45.7]} 38. g3 {[%clk 0:01:17.8]} 38...
Rec8 {[%clk 0:01:45.1]} 39. h4 {[%clk 0:01:16.3]} 39... h6 {[%clk 0:01:41.3]}
40. g4 {[%clk 0:01:16.6]} 40... e6 {[%clk 0:01:41.2]} 41. Qe5 {[%clk 0:01:15.5]}
41... Kg6 {[%clk 0:01:41.5]} 42. h5+ {[%clk 0:01:16]} 42... Kg7 {[%clk
0:01:41.2]} 43. g5 {[%clk 0:01:17.2]} 43... hxg5 {[%clk 0:01:37.7]} 1-0

[Event "*** Titled Tuesday Blitz"]
[Site "Chess.com"]
[Date "2018.04.03"]
[Round "10"]
[White "Rodalquilar"]
[Black "Danny_The_Donkey"]
[Result "0-1"]
[WhiteElo "2492"]
[BlackElo "2658"]
[TimeControl "180+2"]
[EndTime "15:13:27 PDT"]
[Termination "Danny_The_Donkey won by checkmate"]

1. d4 {[%clk 0:03:01.9]} 1... Nf6 {[%clk 0:02:57.7]} 2. c4 {[%clk 0:03:02.6]}
2... e6 {[%clk 0:02:59]} 3. Nc3 {[%clk 0:03:03.7]} 3... Bb4 {[%clk 0:03:00.5]}
4. Qc2 {[%clk 0:03:05.1]} 4... c5 {[%clk 0:02:57.1]} 5. dxc5 {[%clk 0:03:07]}
5... O-O {[%clk 0:02:58.2]} 6. a3 {[%clk 0:03:08.3]} 6... Bxc5 {[%clk
0:02:55.7]} 7. Nf3 {[%clk 0:03:08.5]} 7... Nc6 {[%clk 0:02:55]} 8. Bg5 {[%clk
0:03:07.5]} 8... Nd4 {[%clk 0:02:53.2]} 9. Nxd4 {[%clk 0:03:08.2]} 9... Bxd4
{[%clk 0:02:55.1]} 10. e3 {[%clk 0:03:09.5]} 10... Qa5 {[%clk 0:02:55.2]} 11.
exd4 {[%clk 0:03:05.1]} 11... Qxg5 {[%clk 0:02:56]} 12. Qd2 {[%clk 0:03:07]}
12... Qg4 {[%clk 0:02:54.7]} 13. h3 {[%clk 0:03:05.8]} 13... Qh5 {[%clk
0:02:42]} 14. c5 {[%clk 0:02:48.6]} 14... b6 {[%clk 0:02:18.2]} 15. Be2 {[%clk
0:02:49.4]} 15... Qg6 {[%clk 0:02:18.9]} 16. g4 {[%clk 0:02:37.4]} 16... Bb7
{[%clk 0:02:15.9]} 17. f3 {[%clk 0:02:27.6]} 17... Rac8 {[%clk 0:02:14.8]} 18.
b4 {[%clk 0:01:52.7]} 18... Nd5 {[%clk 0:01:50.5]} 19. Ne4 {[%clk 0:01:42.8]}
19... bxc5 {[%clk 0:01:51.2]} 20. dxc5 {[%clk 0:01:42.2]} 20... f5 {[%clk
0:01:50.1]} 21. Nd6 {[%clk 0:01:43.5]} 21... Qf6 {[%clk 0:01:49.3]} 22. O-O
{[%clk 0:01:10.9]} 22... fxg4 {[%clk 0:01:43.7]} 23. Nxb7 {[%clk 0:00:59]} 23...
Qh4 {[%clk 0:01:40.9]} 24. Bc4 {[%clk 0:00:54.8]} 24... Nf4 {[%clk 0:01:36.5]}
25. fxg4 {[%clk 0:00:46.4]} 25... Nxh3+ {[%clk 0:01:30.1]} 26. Kg2 {[%clk
0:00:46.2]} 26... Qxg4+ {[%clk 0:01:29.3]} 27. Kh2 {[%clk 0:00:47.5]} 27... Qxc4
{[%clk 0:01:22.2]} 28. Nd6 {[%clk 0:00:35.8]} 28... Qh4 {[%clk 0:01:20.3]} 29.
Nxc8 {[%clk 0:00:32.5]} 29... Nf2+ {[%clk 0:01:19.4]} 30. Kg2 {[%clk 0:00:30.5]}
30... Qh3+ {[%clk 0:01:20.2]} 31. Kg1 {[%clk 0:00:31.9]} 31... Qg3# {[%clk
0:01:22]} 0-1

[Event "*** Titled Tuesday Blitz"]
[Site "Chess.com"]
[Date "2018.04.03"]
[Round "10"]
[White "Sebastian"]
[Black "Konavets"]
[Result "0-1"]
[WhiteElo "2798"]
[BlackElo "2789"]
[TimeControl "180+2"]
[EndTime "15:13:30 PDT"]
[Termination "Konavets won by resignation"]

1. e4 {[%clk 0:03:01.9]} 1... c5 {[%clk 0:02:58.2]} 2. Nf3 {[%clk 0:03:03.4]}
2... e6 {[%clk 0:02:58.7]} 3. d4 {[%clk 0:03:04.9]} 3... cxd4 {[%clk 0:03:00.2]}
4. Nxd4 {[%clk 0:03:06.6]} 4... a6 {[%clk 0:03:02.1]} 5. c4 {[%clk 0:03:06.8]}
5... Qc7 {[%clk 0:03:01.6]} 6. a3 {[%clk 0:03:07.3]} 6... Nf6 {[%clk 0:03:02.9]}
7. Nc3 {[%clk 0:03:08.1]} 7... b6 {[%clk 0:03:04.1]} 8. Be3 {[%clk 0:03:08.2]}
8... Bb7 {[%clk 0:03:05.7]} 9. f3 {[%clk 0:03:09.7]} 9... Be7 {[%clk 0:03:06.5]}
10. Be2 {[%clk 0:03:10.1]} 10... O-O {[%clk 0:03:07.6]} 11. b4 {[%clk
0:03:02.1]} 11... d5 {[%clk 0:03:04.4]} 12. exd5 {[%clk 0:02:56.1]} 12... exd5
{[%clk 0:03:05.3]} 13. Nxd5 {[%clk 0:02:17]} 13... Bxd5 {[%clk 0:02:27.5]} 14.
cxd5 {[%clk 0:02:17.8]} 14... Nxd5 {[%clk 0:02:03.6]} 15. Nf5 {[%clk 0:02:16.1]}
15... Nxe3 {[%clk 0:01:24.3]} 16. Nxe3 {[%clk 0:02:16.7]} 16... Rd8 {[%clk
0:01:23.2]} 17. Qc1 {[%clk 0:01:21.5]} 17... Nc6 {[%clk 0:01:13.9]} 18. Kf2
{[%clk 0:01:16.6]} 18... Bf6 {[%clk 0:01:10.4]} 19. Ra2 {[%clk 0:01:11.7]} 19...
Bd4 {[%clk 0:01:10.8]} 20. Kf1 {[%clk 0:00:56.6]} 20... Qf4 {[%clk 0:01:00.9]}
21. Qxc6 {[%clk 0:00:25.3]} 21... Qxe3 {[%clk 0:01:00.9]} 22. Bd1 {[%clk
0:00:24]} 22... Bc3 {[%clk 0:00:59.2]} 23. Be2 {[%clk 0:00:15.6]} 23... Rd1+
{[%clk 0:00:59.5]} 0-1

[Event "*** Titled Tuesday Blitz"]
[Site "Chess.com"]
[Date "2018.04.03"]
[Round "10"]
[White "Entilza"]
[Black "matiss90"]
[Result "1-0"]
[WhiteElo "2204"]
[BlackElo "2344"]
[TimeControl "180+2"]
[EndTime "15:13:30 PDT"]
[Termination "Entilza won by resignation"]

1. d4 {[%clk 0:03:01.9]} 1... Nf6 {[%clk 0:02:51.6]} 2. c4 {[%clk 0:03:01.8]}
2... g6 {[%clk 0:02:49.7]} 3. Nc3 {[%clk 0:03:01.8]} 3... Bg7 {[%clk 0:02:51.6]}
4. e4 {[%clk 0:03:02.8]} 4... O-O {[%clk 0:02:52.8]} 5. Nf3 {[%clk 0:03:04]}
5... d6 {[%clk 0:02:53.9]} 6. Be2 {[%clk 0:03:04.8]} 6... Na6 {[%clk 0:02:54.6]}
7. O-O {[%clk 0:03:04.6]} 7... e5 {[%clk 0:02:55.7]} 8. Re1 {[%clk 0:03:02.1]}
8... exd4 {[%clk 0:02:55.9]} 9. Nxd4 {[%clk 0:03:04]} 9... Re8 {[%clk
0:02:56.9]} 10. Bf1 {[%clk 0:03:02.8]} 10... Nc5 {[%clk 0:02:57.3]} 11. f3
{[%clk 0:02:58.4]} 11... a5 {[%clk 0:02:56.9]} 12. Bg5 {[%clk 0:02:53.5]} 12...
h6 {[%clk 0:02:52.6]} 13. Be3 {[%clk 0:02:53.8]} 13... c6 {[%clk 0:02:47.3]} 14.
Qd2 {[%clk 0:02:54.4]} 14... Kh7 {[%clk 0:02:47.7]} 15. Rad1 {[%clk 0:02:48.7]}
15... a4 {[%clk 0:02:46.3]} 16. Nxc6 {[%clk 0:02:39.1]} 16... Ncxe4 {[%clk
0:02:30.9]} 17. Nxd8 {[%clk 0:02:34.3]} 17... Nxd2 {[%clk 0:02:30.9]} 18. Nxf7
{[%clk 0:02:34.6]} 18... Nxf1 {[%clk 0:02:26.4]} 19. Kxf1 {[%clk 0:02:35.1]}
19... Be6 {[%clk 0:02:25.5]} 20. Nxd6 {[%clk 0:02:34.8]} 20... Red8 {[%clk
0:02:24.3]} 21. c5 {[%clk 0:02:23.3]} 21... a3 {[%clk 0:02:24]} 22. b3 {[%clk
0:02:18.5]} 22... Bg8 {[%clk 0:02:14.3]} 23. Nxb7 {[%clk 0:02:07.2]} 23... Rdb8
{[%clk 0:02:11.9]} 24. c6 {[%clk 0:02:02.7]} 24... Rc8 {[%clk 0:02:09.5]} 25.
Na4 {[%clk 0:01:09.5]} 25... Rxc6 {[%clk 0:02:09.2]} 26. Nac5 {[%clk 0:01:09.9]}
26... Nd5 {[%clk 0:02:08.4]} 27. Bf2 {[%clk 0:01:05.8]} 27... Nc3 {[%clk
0:02:04.4]} 28. Rd7 {[%clk 0:01:01.5]} 28... Kh8 {[%clk 0:01:47.8]} 29. Rxg7
{[%clk 0:01:01]} 29... Kxg7 {[%clk 0:01:41.8]} 30. Bd4+ {[%clk 0:01:01.5]} 30...
Kf7 {[%clk 0:01:32.1]} 31. Bxc3 {[%clk 0:01:00.5]} 31... Re8 {[%clk 0:01:31.4]}
32. Rd1 {[%clk 0:00:57]} 32... g5 {[%clk 0:01:25.1]} 33. Nd6+ {[%clk 0:00:56.7]}
1-0

[Event "*** Titled Tuesday Blitz"]
[Site "Chess.com"]
[Date "2018.04.03"]
[Round "10"]
[White "Caisachess"]
[Black "simplerXiao"]
[Result "0-1"]
[WhiteElo "2193"]
[BlackElo "2377"]
[TimeControl "180+2"]
[EndTime "15:13:33 PDT"]
[Termination "simplerXiao won by resignation"]

1. e4 {[%clk 0:02:52.7]} 1... c5 {[%clk 0:02:55.4]} 2. c3 {[%clk 0:02:53]} 2...
Nf6 {[%clk 0:02:52]} 3. e5 {[%clk 0:02:53.6]} 3... Nd5 {[%clk 0:02:52.5]} 4. d4
{[%clk 0:02:55.2]} 4... cxd4 {[%clk 0:02:51.2]} 5. Nf3 {[%clk 0:02:53.7]} 5...
Nc6 {[%clk 0:02:48.9]} 6. cxd4 {[%clk 0:02:53.6]} 6... d6 {[%clk 0:02:48.1]} 7.
Bc4 {[%clk 0:02:54.2]} 7... Nb6 {[%clk 0:02:48.3]} 8. Bxf7+ {[%clk 0:02:54.8]}
8... Kxf7 {[%clk 0:02:46.9]} 9. e6+ {[%clk 0:02:55.7]} 9... Kxe6 {[%clk
0:02:30.9]} 10. Ng5+ {[%clk 0:02:52.9]} 10... Kd7 {[%clk 0:02:31.3]} 11. d5
{[%clk 0:02:53.8]} 11... Qe8 {[%clk 0:02:25.7]} 12. Nc3 {[%clk 0:02:50.7]} 12...
Ne5 {[%clk 0:02:22.4]} 13. O-O {[%clk 0:02:39.7]} 13... Kd8 {[%clk 0:02:13.6]}
14. f4 {[%clk 0:02:37.8]} 14... h6 {[%clk 0:02:12.7]} 15. fxe5 {[%clk
0:02:16.9]} 15... hxg5 {[%clk 0:02:12.3]} 16. e6 {[%clk 0:02:17.5]} 16... Nc4
{[%clk 0:02:02.4]} 17. Bxg5 {[%clk 0:02:10]} 17... b6 {[%clk 0:01:59.2]} 18. Qe2
{[%clk 0:02:00.2]} 18... Ne5 {[%clk 0:01:55.2]} 19. Bf4 {[%clk 0:01:50.7]} 19...
Ng6 {[%clk 0:01:53.4]} 20. Bg3 {[%clk 0:01:48.7]} 20... Bb7 {[%clk 0:01:48.2]}
21. Rac1 {[%clk 0:01:43.5]} 21... Rc8 {[%clk 0:01:46.6]} 22. Qe4 {[%clk
0:01:37]} 22... Ba6 {[%clk 0:01:32.6]} 23. Rf7 {[%clk 0:01:36.5]} 23... Rh6
{[%clk 0:01:27.9]} 24. Bxd6 {[%clk 0:01:22.8]} 24... Nh8 {[%clk 0:01:22.1]} 25.
Rf5 {[%clk 0:00:49.8]} 25... exd6 {[%clk 0:01:20.8]} 26. Qf4 {[%clk 0:00:50.7]}
26... Be7 {[%clk 0:01:18.4]} 27. Rf1 {[%clk 0:00:45.4]} 27... Bxf1 {[%clk
0:01:09.8]} 28. Qxf1 {[%clk 0:00:44.4]} 28... Rf6 {[%clk 0:01:08.2]} 0-1